bitfinex/quotes_SOLUSD_20250219
["timestamp","ask_amount","ask_price","bid_price","bid_amount"]
[1739939448541,0.92192595,165.95,165.93,6.0266]
[1739939448745,84.62192595,165.96,165.93,6.0266]
[1739939448939,82.7,165.96,165.94,12.5068906]
[1739939449257,82.7,165.96,165.95,12.5068906]
[1739939450177,82.7,165.96,165.95,6.0259]
[1739939451164,0.92192595,165.95,165.93,6.0266]
[1739939451365,83.62192595,165.96,165.93,6.0266]
[1739939451730,0.92192595,165.95,165.93,6.0266]
[1739939452262,83.62192595,165.96,165.95,20.0]
[1739939452725,82.7,165.96,165.95,20.0]
[1739939452929,82.7,165.96,165.93,6.0266]
[1739939453229,82.7,165.96,165.93,18.5334906]
[1739939453425,82.7,165.96,165.94,12.5068906]
[1739939454132,0.92192595,165.97,165.95,6.0259]
[1739939454862,83.68492595,165.98,165.95,6.0259]
[1739939455165,83.68492595,165.98,165.95,18.5327906]
[1739939456465,0.92192595,165.96,165.93,6.0263]
[1739939456651,0.92192595,165.95,165.93,6.0263]
[1739939457458,0.92192595,165.94,165.93,6.0263]
[1739939458667,0.92192595,165.94,165.93,20.0]
[1739939458968,0.92192595,165.94,165.92,6.057]
[1739939459153,83.62192595,165.96,165.94,20.0]
[1739939459741,83.62192595,165.96,165.93,12.5068906]
[1739939460099,83.62192595,165.96,165.92,33.6313906]
[1739939460538,82.7,165.96,165.92,33.6313906]
[1739939460958,83.62192595,165.96,165.93,12.5068906]
[1739939461355,83.62192595,165.96,165.93,9.9538906]
[1739939461967,82.7,165.96,165.93,9.9538906]
[1739939462269,83.62192595,165.96,165.93,9.9538906]
[1739939462464,0.92192595,165.94,165.92,18.5638906]
[1739939462669,0.92192595,165.94,165.92,6.057]
[1739939462973,0.92192595,165.94,165.93,20.0]
[1739939463357,0.92192595,165.94,165.92,0.03]
[1739939464272,0.92192595,165.93,165.92,0.03]
[1739939464476,83.62192595,165.93,165.92,0.03]
[1739939464846,84.62192595,165.93,165.92,0.03]
[1739939465446,82.7,165.93,165.92,0.03]
[1739939465848,9.92792256,165.93,165.92,0.03]
[1739939466574,14.43748527,165.93,165.92,0.03]
[1739939467455,15.56778142,165.93,165.92,0.03]
[1739939467657,14.43748527,165.93,165.92,0.03]
[1739939467877,22.06638527,165.93,165.92,0.03]
[1739939468448,23.06638527,165.93,165.92,0.03]
[1739939468764,8.54732595,165.9,165.89,0.03]
[1739939468964,21.06288527,165.9,165.89,0.03]
[1739939469153,1.92192595,165.9,165.89,0.03]
[1739939469356,14.43748527,165.9,165.89,0.03]
[1739939470187,20.46518527,165.9,165.89,0.03]
[1739939470475,21.59577674,165.9,165.89,0.03]
[1739939470648,22.59577674,165.9,165.89,0.03]
[1739939471246,21.59577674,165.9,165.89,0.03]
[1739939471959,22.59577674,165.9,165.89,0.03]
[1739939472156,23.59577674,165.9,165.89,0.0001]
[1739939472602,1.92192595,165.8,165.79,6.0315]
[1739939473488,0.92192595,165.8,165.79,6.0315]
[1739939473692,0.92192595,165.81,165.78,6.032]
[1739939474283,0.92192595,165.8,165.78,6.032]
[1739939474464,1.92192595,165.8,165.78,6.032]
[1739939475106,0.92192595,165.79,165.78,6.032]
[1739939475389,1.0,165.8,165.78,6.032]
[1739939475758,1.0,165.8,165.77,19.44424853]
[1739939476365,1.92192595,165.8,165.77,6.0324]
[1739939477061,82.7,165.81,165.78,12.51555932]
[1739939477255,82.7,165.81,165.8,25.92740785]
[1739939477764,82.7,165.81,165.8,31.95870785]
[1739939477954,82.7,165.81,165.8,19.44314853]
[1739939478386,82.7,165.81,165.8,6.0313]
[1739939479011,82.7,165.83,165.8,6.0313]
[1739939479177,82.7,165.83,165.8,18.54685932]
[1739939480305,82.7,165.83,165.81,12.51555932]
[1739939480616,0.92192595,165.87,165.81,12.51555932]
[1739939480811,84.62192595,165.89,165.84,12.51555932]
[1739939480988,0.92192595,165.9,165.86,12.51555932]
[1739939481192,83.62192595,165.91,165.86,12.51555932]
[1739939481387,0.92192595,165.9,165.86,12.51555932]
[1739939481612,83.62192595,165.91,165.86,12.51555932]
[1739939482112,83.62192595,165.91,165.82,94.31184853]
[1739939482113,82.7,165.91,165.87,18.54435932]
[1739939482320,0.92192595,165.93,165.89,12.51555932]
[1739939482638,0.92192595,165.93,165.87,39.84105932]
[1739939482639,0.92192595,165.92,165.87,39.84105932]
[1739939483281,0.92192595,165.9,165.87,12.2535]
[1739939483489,0.92192595,165.92,165.87,12.2535]
[1739939483676,14.43748527,165.93,165.87,24.76905932]
[1739939483881,1.0,165.92,165.87,24.76905932]
[1739939484083,1.0,165.93,165.89,6.028]
[1739939484382,0.92192595,165.94,165.89,33.61375932]
[1739939484582,84.62192595,165.95,165.89,35.18035932]
[1739939484783,84.62192595,165.95,165.9,12.51555932]
[1739939484982,0.92192595,165.94,165.9,12.51555932]
[1739939485281,12.57855932,165.96,165.89,22.6648]
[1739939485282,1.063,165.96,165.91,25.92740785]
[1739939485481,0.063,165.96,165.92,12.51555932]
[1739939485687,0.063,165.96,165.93,12.51555932]
[1739939485887,1.063,165.96,165.92,17.19555932]
[1739939486322,0.063,165.96,165.93,6.0266]
[1739939486528,0.98492595,165.98,165.94,12.51555932]
[1739939486823,0.98492595,166.03,165.97,45.92740785]
[1739939487004,0.063,166.03,166.0,12.51555932]
[1739939488016,0.063,166.03,166.02,25.92740785]
[1739939488613,0.0001,166.03,166.02,31.95070785]
[1739939489220,0.0001,166.03,166.02,18.53885932]
[1739939489419,0.0001,166.03,166.02,6.0233]
[1739939489919,0.0001,166.03,166.02,18.53885932]
[1739939491327,0.0001,166.03,166.02,31.95070785]
[1739939491511,0.0001,166.03,166.02,6.0233]
[1739939492930,0.92192595,166.01,165.98,6.0248]
[1739939493117,0.92192595,165.99,165.98,6.0248]
[1739939493297,0.92192595,165.97,165.95,6.0259]
[1739939493501,1.92192595,165.96,165.95,6.0259]
[1739939493804,1.92192595,165.97,165.95,6.0259]
[1739939494205,0.92192595,165.96,165.95,6.0259]
[1739939494423,1.92192595,165.97,165.95,6.0259]
[1739939494928,1.0,165.97,165.95,6.0259]
[1739939495116,1.92192595,165.97,165.95,6.0259]
[1739939495434,83.7,165.98,165.95,6.0259]
[1739939495642,0.92192595,166.0,165.96,13.41184853]
[1739939495830,82.7,166.02,165.98,12.51555932]
[1739939496704,82.7,166.02,166.0,13.41184853]
[1739939496904,0.0001,166.03,166.01,12.51555932]
[1739939497209,0.0001,166.03,166.0,30.58740785]
[1739939498530,0.0001,166.03,166.02,13.41184853]
[1739939498912,0.0001,166.03,166.02,19.43514853]
[1739939500338,0.0001,166.03,166.02,31.95070785]
[1739939508915,0.0001,166.03,166.02,19.43514853]
[1739939509244,0.0001,166.03,166.02,6.0233]
[1739939509429,14.43758527,166.03,166.0,0.03]
[1739939509632,1.92192595,166.01,166.0,6.054]
[1739939509936,0.92192595,166.02,166.0,6.054]
[1739939510244,0.92202595,166.03,166.0,6.054]
[1739939512129,0.0001,166.03,166.0,6.054]
[1739939512448,0.0001,166.03,166.0,18.56955932]
[1739939513025,0.0001,166.03,166.02,0.03]
[1739939514141,0.0001,166.03,166.02,6.0533]
[1739939516021,0.0001,166.03,166.02,0.03]
[1739939518434,0.0001,166.03,166.02,12.54555932]
[1739939518844,0.0001,166.03,166.02,25.95740785]
[1739939519732,0.0001,166.03,166.02,30.61740785]
[1739939519938,0.0001,166.03,166.02,36.64070785]
[1739939520441,0.0001,166.03,166.02,44.80440785]
[1739939520837,83.62192595,166.11,166.06,20.0]
[1739939521031,0.92192595,166.11,166.09,12.51555932]
[1739939521434,0.92192595,166.12,166.09,12.51555932]
[1739939521927,0.92192595,166.12,166.09,6.0208]
[1739939522442,0.92192595,166.12,166.09,18.53635932]
[1739939523853,1.92192595,166.09,166.04,93.41555932]
[1739939524045,0.92192595,166.05,166.04,10.6825]
[1739939524247,0.92192595,166.04,166.02,6.053]
[1739939524562,0.92192595,166.03,166.02,0.03]
[1739939524740,0.92192595,166.03,166.02,6.0533]
[1739939525142,1.92192595,166.03,166.02,0.03]
[1739939526455,14.43748527,166.03,166.02,0.03]
[1739939526642,20.51528527,166.03,166.02,0.03]
[1739939527033,27.66799782,166.03,166.02,0.03]
[1739939527629,20.51528527,166.03,166.02,0.03]
[1739939528963,14.43748527,166.03,166.02,0.03]
[1739939529967,21.59002348,166.03,166.02,0.03]
[1739939531152,20.46048527,166.03,166.02,0.03]
[1739939531462,14.43748527,166.03,166.02,0.03]
[1739939535575,1.92192595,166.03,166.02,0.03]
[1739939537449,1.98492595,166.03,166.02,0.03]
[1739939538765,0.063,166.03,166.02,0.03]
[1739939540677,0.04582459,166.04,166.02,106.85740785]
[1739939540963,0.063,166.08,166.06,20.0]
[1739939541170,0.063,166.08,166.06,32.51555932]
[1739939541462,0.063,166.08,166.07,20.0]
[1739939541869,0.063,166.08,166.07,26.0215]
[1739939543949,83.96049745,166.12,166.08,13.41184853]
[1739939544264,1.0,166.11,166.08,13.41184853]
[1739939544569,1.26049745,166.12,166.08,13.41184853]
[1739939545442,1.063,166.13,166.08,13.41184853]
[1739939545642,0.063,166.13,166.08,13.41184853]
[1739939545874,0.063,166.13,166.08,25.92740785]
[1739939546068,0.063,166.13,166.09,6.0208]
[1739939546877,1.063,166.13,166.09,6.0208]
[1739939547178,0.063,166.13,166.09,6.0208]
[1739939547976,1.0,166.05,166.02,0.03]
[1739939548266,13.51555932,166.05,166.02,0.03]
[1739939548477,1.0,166.05,166.02,0.03]
[1739939548848,1.0,166.06,166.02,0.03]
[1739939549054,1.0,166.06,166.02,6.0533]
[1739939549258,13.51555932,166.08,166.03,13.41184853]
[1739939549458,1.0,166.07,166.03,13.41184853]
[1739939549748,1.0,166.05,166.03,13.41184853]
[1739939549951,1.0,166.05,166.02,6.0533]
[1739939550171,1.0,166.04,166.02,6.0533]
[1739939551276,1.0,166.04,166.02,0.03]
[1739939551854,1.0,166.08,166.02,12.54555932]
[1739939552071,1.0,166.08,166.03,13.41184853]
[1739939552259,1.0,166.08,166.03,12.51555932]
[1739939552458,82.7,166.09,166.05,13.41184853]
[1739939552673,1.0,166.11,166.07,13.41184853]
[1739939552857,82.7,166.12,166.07,25.92740785]
[1739939553359,82.7,166.12,166.09,13.41184853]
[1739939553948,83.7,166.12,166.09,13.41184853]
[1739939554152,82.7,166.12,166.09,13.41184853]
[1739939554359,82.7,166.12,166.09,25.92740785]
[1739939555351,0.063,166.13,166.11,13.41184853]
[1739939557281,0.063,166.13,166.12,6.0197]
[1739939559774,0.063,166.13,166.12,19.43154853]
[1739939561588,0.0001,166.13,166.12,31.94710785]
[1739939561800,0.0001,166.13,166.12,36.60710785]
[1739939562198,0.063,166.19,166.18,0.99990255]
[1739939562410,0.063,166.22,166.18,85.58]
[1739939562730,1.063,166.22,166.18,85.58]
[1739939562869,1.063,166.22,166.18,4.68]
[1739939563074,83.7,166.21,166.18,4.68]
[1739939563514,83.7,166.21,166.19,6.0172]
[1739939564076,0.063,166.22,166.19,31.94460785]
[1739939564077,0.0001,166.2,166.19,31.94460785]
[1739939564606,0.0001,166.2,166.19,19.42904853]
[1739939564810,0.0001,166.2,166.19,31.94460785]
[1739939567814,0.0001,166.2,166.19,19.42904853]
[1739939568108,0.0001,166.2,166.19,31.94460785]
[1739939568473,0.0001,166.2,166.19,32.9445104]
[1739939568675,0.0001,166.22,166.21,25.92740785]
[1739939570213,0.0001,166.22,166.21,31.94380785]
[1739939570608,0.0001,166.22,166.21,19.42824853]
[1739939570996,0.0001,166.22,166.21,31.94380785]
[1739939572825,0.0001,166.22,166.21,19.42824853]
[1739939573684,0.0001,166.22,166.21,39.42824853]
[1739939574625,1.0,166.2,166.19,101.5471]
[1739939574987,1.0,166.2,166.19,114.95894853]
[1739939575501,1.0001,166.22,166.19,127.47450785]
[1739939575704,0.0001,166.22,166.21,12.51555932]
[1739939576717,0.0001,166.22,166.21,31.94380785]
[1739939580206,0.0001,166.22,166.21,19.42824853]
[1739939580813,0.0001,166.22,166.21,31.94380785]
[1739939582602,1.0,166.2,166.19,101.5471]
[1739939583226,13.51555932,166.2,166.19,95.53]
[1739939584022,1.0,166.2,166.19,95.53]
[1739939585808,96.21555932,166.2,166.19,95.53]
[1739939586205,96.21555932,166.2,166.19,0.03]
[1739939587095,102.23235932,166.2,166.19,0.03]
[1739939587411,20.66083617,166.2,166.19,0.03]
[1739939587612,19.53235932,166.2,166.19,0.03]
[1739939587925,13.51555932,166.2,166.19,0.03]
[1739939588428,83.7,166.21,166.19,0.03]
[1739939589294,1.0,166.2,166.19,0.03]
[1739939589499,13.51555932,166.2,166.19,0.03]
[1739939589928,1.0,166.2,166.19,0.03]
[1739939590530,82.7,166.21,166.2,33.41184853]
[1739939590914,1.0001,166.22,166.2,33.41184853]
[1739939591232,1.0,166.21,166.2,33.41184853]
[1739939592350,1.0,166.21,166.2,39.42864853]
[1739939592645,1.0,166.21,166.2,19.42864853]
[1739939592831,1.0,166.2,166.19,0.03]
[1739939593146,96.21555932,166.2,166.19,0.03]
[1739939593823,83.7,166.2,166.19,0.03]
[1739939594024,83.7,166.2,166.19,19.45904853]
[1739939594235,82.7,166.2,166.19,19.45904853]
[1739939594443,83.7,166.2,166.19,0.03]
[1739939595125,82.7,166.2,166.19,6.0472]
[1739939595421,1.0001,166.22,166.19,6.0472]
[1739939595822,1.0,166.21,166.19,6.0472]
[1739939598250,1.0,166.2,166.19,0.03]
[1739939599344,13.51555932,166.2,166.19,0.03]
[1739939600414,1.0,166.2,166.19,0.03]
[1739939600643,1.0,166.21,166.19,13.44184853]
[1739939600943,1.0001,166.22,166.19,13.44184853]
[1739939601149,1.0,166.2,166.19,13.44184853]
[1739939601346,1.0,166.2,166.19,0.03]
[1739939601517,13.51555932,166.2,166.19,0.03]
[1739939601720,1.0,166.2,166.19,0.03]
[1739939602319,13.51555932,166.2,166.19,0.03]
[1739939602841,19.53235932,166.2,166.19,0.03]
[1739939603153,13.51555932,166.2,166.19,0.03]
[1739939604147,19.53235932,166.2,166.19,0.03]
[1739939604345,27.16195932,166.2,166.19,0.03]
[1739939604525,28.29042439,166.2,166.19,0.03]
[1739939609432,29.29042439,166.2,166.19,0.03]
[1739939610153,1.0,166.09,166.08,95.48]
[1739939610331,13.51555932,166.09,166.08,95.48]
[1739939611351,1.0,166.09,166.08,95.48]
[1739939613130,13.51555932,166.09,166.08,95.48]
[1739939613930,1.0,166.04,166.03,6.0856]
[1739939614668,1.0,166.04,166.03,0.063]
[1739939617672,13.51555932,166.04,166.03,0.063]
[1739939617854,1.0,166.04,166.03,0.063]
[1739939627873,13.51555932,166.04,166.03,0.063]
[1739939628568,8.99703417,166.04,166.03,0.063]
[1739939628766,83.7,166.05,166.04,20.0]
[1739939629077,1.0,166.07,166.03,8.06003417]
[1739939629293,1.0,166.07,166.04,13.41184853]
[1739939629582,0.04587854,166.06,166.05,20.0]
[1739939629942,0.04587854,166.06,166.05,26.0222]
[1739939630380,1.04587854,166.06,166.05,26.0222]
[1739939630549,1.0,166.04,166.03,0.063]
[1739939630746,13.4933616,166.04,166.03,0.063]
[1739939631875,19.5159616,166.04,166.03,0.063]
[1739939632083,20.64549738,166.04,166.03,0.063]
[1739939632286,21.64549738,166.04,166.03,0.063]
[1739939633543,14.62289738,166.04,166.03,0.063]
[1739939633752,13.4933616,166.04,166.03,0.063]
[1739939634857,1.0,166.04,166.03,0.063]
[1739939635563,1.0,166.05,166.03,0.063]
[1739939635775,83.74587854,166.06,166.03,0.063]
[1739939636275,1.04587854,166.06,166.03,6.086]
[1739939636471,0.04587854,166.06,166.03,6.086]
[1739939636677,0.04587854,166.06,166.05,20.0]
[1739939637490,0.04587854,166.06,166.05,32.4933616]
[1739939638290,0.04587854,166.06,166.05,38.5155616]
[1739939639796,0.04587854,166.06,166.05,51.92741013]
[1739939639962,7.854e-05,166.06,166.05,51.92741013]
[1739939640162,7.854e-05,166.06,166.05,31.92741013]
[1739939640874,7.854e-05,166.06,166.05,19.43404853]
[1739939641282,1.00007854,166.06,166.04,12.493361]
[1739939641477,1.0,166.04,166.03,6.0856]
[1739939641673,1.0,166.05,166.03,19.49744853]
[1739939641886,7.854e-05,166.06,166.04,25.90521013]
[1739939642391,82.91784254,166.08,166.04,25.90521013]
[1739939642569,81.91784254,166.08,166.06,13.41184853]
[1739939642774,1.0,166.11,166.08,13.41184853]
[1739939643078,1.0,166.11,166.08,25.90521013]
[1739939643684,1.0,166.09,166.08,6.0211]
[1739939644088,1.0,166.09,166.03,6.086]
[1739939644089,1.0,166.04,166.03,6.086]
[1739939644974,13.4933616,166.04,166.03,0.063]
[1739939646297,20.64543595,166.04,166.03,0.063]
[1739939647713,21.64543595,166.04,166.03,0.063]
[1739939647866,21.64543595,166.04,166.0,0.03]
[1739939647867,22.0,166.01,166.0,0.03]
[1739939648075,35.62331158,166.01,166.0,0.03]
[1739939648281,36.62331158,166.01,166.0,0.03]
[1739939648593,35.62331158,166.01,166.0,0.03]
[1739939648774,36.62331158,166.01,166.0,0.03]
[1739939649785,42.64701158,166.01,166.0,0.03]
[1739939650695,40.64701158,166.01,166.0,0.03]
[1739939650887,41.64701158,166.01,166.0,0.03]
[1739939651202,42.64701158,166.01,166.0,0.03]
[1739939651607,1.0,165.92,165.91,2.415364]
[1739939652205,1.0,165.9,165.89,101.588]
[1739939652891,1.0,165.91,165.89,119.706655]
[1739939653092,1.0,165.92,165.91,6.0273]
[1739939656111,1.0,165.92,165.9,13.41184853]
[1739939656328,1.0,165.91,165.9,19.43954853]
[1739939656492,1.0,165.92,165.9,19.43954853]
[1739939656692,1.0,165.91,165.9,19.43954853]
[1739939656905,1.0,165.92,165.9,19.43954853]
[1739939657112,1.0,165.92,165.89,18.118655]
[1739939657296,1.0,165.9,165.89,18.118655]
[1739939657616,1.0,165.9,165.89,24.146655]
[1739939658391,1.0,165.9,165.89,18.118655]
[1739939658622,1.0,165.87,165.86,86.9588]
[1739939658932,1.0,165.87,165.86,6.0588]
[1739939659096,1.0,165.87,165.86,18.552162]
[1739939660826,1.0,165.87,165.86,12.523362]
[1739939661618,1.0,165.88,165.86,12.523362]
[1739939661821,1.0,165.88,165.86,18.552462]
[1739939662406,1.0,165.88,165.86,31.0458236]
[1739939663127,1.0,165.88,165.86,18.552462]
[1739939663626,1.0,165.9,165.87,25.90521013]
[1739939663810,83.7,165.92,165.88,12.4933616]
[1739939664004,82.7,165.92,165.89,13.41184853]
[1739939664328,82.7,165.92,165.89,12.4933616]
[1739939664696,1.0,165.93,165.9,12.4933616]
[1739939664932,1.0,165.95,165.91,12.4933616]
[1739939665305,1.0,165.94,165.92,6.027]
[1739939665522,1.0,165.93,165.92,6.027]
[1739939665723,1.0,165.93,165.9,6.0277]
[1739939666023,1.0,165.93,165.9,18.5210616]
[1739939666231,1.0,165.92,165.9,18.5210616]
[1739939666401,1.0,165.93,165.9,18.5210616]
[1739939666817,1.0,165.91,165.9,31.93291013]
[1739939667115,1.0,165.93,165.9,18.5210616]
[1739939667540,1.0,165.94,165.9,18.5210616]
[1739939668447,83.7,165.95,165.91,25.90521013]
[1739939668751,1.0,165.97,165.93,25.90521013]
[1739939668916,1.0,165.97,165.93,13.41184853]
[1739939669122,1.0,165.96,165.93,13.41184853]
[1739939669426,1.0,165.95,165.94,13.411848]
[1739939669612,1.0,165.97,165.94,13.411848]
[1739939669817,1.0,165.97,165.95,6.0259]
[1739939670018,1.0,165.96,165.95,6.0259]
[1739939670441,1.0,165.94,165.93,6.0263]
[1739939670747,1.0,165.96,165.93,31.9315106]
[1739939671249,1.0,165.97,165.93,31.9315106]
[1739939671618,83.7,165.98,165.94,25.90521013]
[1739939672027,1.0,165.96,165.95,6.0259]
[1739939672863,83.7,165.98,165.95,6.0259]
[1739939674041,1.0,165.96,165.95,6.0259]
[1739939676250,1.0,165.96,165.94,6.0262]
[1739939676423,1.0,165.95,165.94,6.0262]
[1739939677436,82.7,165.98,165.94,6.0262]
[1739939677437,1.0,165.96,165.94,6.0262]
[1739939677750,1.0,165.95,165.94,6.0262]
[1739939677952,1.0,165.94,165.93,19.438349]
[1739939678251,1.0,165.94,165.93,6.0265]
[1739939678454,1.0,165.94,165.92,24.142858]
[1739939678621,1.0,165.93,165.92,6.0269]
[1739939681150,1.0,165.92,165.91,18.116232]
[1739939681350,1.0,165.92,165.9,0.03]
[1739939681523,1.0,165.91,165.9,0.03]
[1739939681932,1.0,165.91,165.9,6.0575]
[1739939683235,1.0,165.92,165.9,18.5508616]
[1739939684051,1.0,165.93,165.91,12.4933616]
[1739939684356,1.0,165.93,165.92,12.4933616]
[1739939685633,1.0,165.93,165.92,33.5878616]
[1739939687643,1.0,165.93,165.92,38.2478616]
[1739939688352,1.0,165.94,165.92,38.2478616]
[1739939688539,1.0,165.94,165.93,12.4933616]
[1739939688945,82.7,165.98,165.93,12.4933616]
[1739939688946,1.0,165.95,165.93,12.4933616]
[1739939689659,1.0,165.95,165.94,6.0262]
[1739939689960,1.0,165.96,165.94,6.0262]
[1739939690532,1.0,165.97,165.95,12.4933616]
[1739939690727,1.063,166.0,165.96,12.4933616]
[1739939690933,0.063,166.0,165.98,32.4933616]
[1739939691433,0.063,166.0,165.99,12.4933616]
[1739939691839,0.063,166.0,165.99,18.5177616]
[1739939692040,1.0,166.06,166.0,13.41184853]
[1739939692240,1.0,166.05,166.02,12.4933616]
[1739939692544,1.0,166.05,166.03,13.41184853]
[1739939692964,1.0,166.04,166.03,13.41184853]
[1739939693259,1.0,166.06,166.03,13.41184853]
[1739939693445,1.0,166.05,166.04,6.0226]
[1739939693961,1.0,166.06,166.04,6.0226]
[1739939694260,1.0,166.05,166.04,6.0226]
[1739939694861,1.0,166.06,166.04,6.0226]
[1739939696258,1.0,166.03,165.99,6.0244]
[1739939696563,1.0,166.02,166.01,20.0]
[1739939697741,1.0,166.02,166.01,26.0237]
[1739939698274,1.0,166.03,166.01,6.0237]
[1739939698438,1.0,166.03,166.0,3.00916743]
[1739939698439,1.0,166.01,166.0,6.0239]
[1739939699263,1.0,165.98,165.97,6.0251]
[1739939699774,1.0,165.99,165.97,12.4933616]
[1739939700152,1.0,165.99,165.96,34.87953127]
[1739939701646,1.0,166.01,165.99,13.41184853]
[1739939702148,1.0,166.04,166.01,13.41184853]
[1739939702352,1.0,166.03,166.0,4.66]
[1739939702552,1.0,166.02,166.0,4.66]
[1739939702757,1.0,166.03,166.0,4.66]
[1739939703467,1.0,166.03,166.01,13.41184853]
[1739939703771,1.0,166.04,166.02,6.0233]
[1739939704177,1.0,166.04,166.02,19.43514853]
[1739939704375,1.0,166.04,166.03,13.41184853]
[1739939704675,1.0,166.05,166.03,13.41184853]
[1739939705756,1.0,166.06,166.03,6.023]
[1739939707673,1.0,166.06,166.04,2.96493044]
[1739939709482,1.063,166.06,166.05,6.0222]
[1739939713162,1.063,166.06,166.02,23.05092861]
[1739939713163,1.063,166.06,166.03,6.023]
[1739939713358,1.0,166.04,166.03,6.023]
[1739939713577,1.0,166.04,166.03,19.43484853]
[1739939714187,1.0,166.05,166.03,19.43484853]
[1739939714863,1.063,166.06,166.03,30.39029363]
[1739939715063,1.063,166.06,166.05,6.0222]
[1739939715361,0.063,166.06,166.03,8.98521649]
[1739939715681,1.0,166.03,166.01,6.0237]
[1739939715885,1.0,166.03,166.02,13.41184853]
[1739939717384,1.0,166.03,166.02,6.0233]
[1739939717558,1.0,166.01,166.0,182.5037]
[1739939717761,1.0,166.01,166.0,101.6037]
[1739939718782,1.0,166.03,166.01,13.41184853]
[1739939718967,1.0,166.05,166.01,21.40477714]
[1739939719148,1.0,166.05,166.02,7.99292861]
[1739939719354,1.063,166.06,166.04,6.0226]
[1739939719670,0.063,166.06,166.04,6.0226]
[1739939721181,1.0,166.05,166.04,19.43444853]
[1739939721690,1.0,166.05,166.04,6.0226]
[1739939723370,0.063,166.06,166.04,6.0226]
[1739939723578,1.063,166.06,166.04,6.0226]
[1739939724791,1.0,166.05,166.04,6.0226]
[1739939725177,1.0,166.05,166.03,6.023]
[1739939726195,1.0,166.05,166.03,9.11073306]
[1739939727877,1.063,166.06,166.03,9.11073306]
[1739939729568,1.0,166.05,166.03,9.11073306]
[1739939731597,1.0,166.04,166.03,9.11073306]
[1739939732089,1.0,166.05,166.03,9.11073306]
[1739939732399,1.0,166.04,166.03,22.52258159]
[1739939732981,1.0,166.05,166.03,22.52258159]
[1739939733904,0.96669825,166.05,166.03,22.52258159]
[1739939734895,1.02969825,166.05,166.03,22.52258159]
[1739939735408,0.063,166.05,166.03,22.52258159]
[1739939736075,0.063,166.05,166.04,19.43444853]
[1739939736278,1.02969825,166.05,166.04,19.43444853]
[1739939739105,0.063,166.05,166.04,19.43444853]
[1739939742122,1.02969825,166.05,166.04,19.43444853]
[1739939742321,0.063,166.05,166.04,19.43444853]
[1739939744098,1.02969825,166.05,166.04,19.43444853]
[1739939744421,0.063,166.05,166.04,19.43444853]
[1739939748027,1.02969825,166.05,166.04,19.43444853]
[1739939748822,0.063,166.05,166.04,19.43444853]
[1739939749930,1.02969825,166.05,166.04,19.43444853]
[1739939752320,0.063,166.05,166.04,19.43444853]
[1739939752529,1.02969825,166.05,166.04,19.43444853]
[1739939752828,1.02969825,166.05,166.04,6.0226]
[1739939754626,0.96669825,166.03,166.01,15.0589]
[1739939754807,0.96669825,166.02,166.01,34.49444853]
[1739939755830,0.063,166.05,166.03,33.41184853]
[1739939756503,0.96669825,166.04,166.03,33.41184853]
[1739939757028,0.96669825,166.04,166.03,39.43484853]
[1739939758938,1.02969825,166.05,166.04,19.43444853]
[1739939765633,0.96669825,166.04,166.01,2.413511]
[1739939765940,0.96669825,166.03,166.02,13.41184853]
[1739939766841,0.063,166.05,166.04,33.41184853]
[1739939767640,0.063,166.05,166.04,39.43444853]
[1739939768742,0.0001,166.05,166.04,39.43444853]
[1739939769517,0.0001,166.05,166.04,39.46444853]